bitfinex-derivatives/quotes_BTCF0:USTF0_20241210
["timestamp","ask_amount","ask_price","bid_price","bid_amount"]
[1733865382464,0.0517382,96720.0,96719.0,0.00955091]
[1733865383462,0.051671,96703.0,96702.0,0.051671]
[1733865383662,0.0517382,96720.0,96700.0,0.1]
[1733865383663,0.051671,96702.0,96700.0,0.1]
[1733865383970,0.051671,96702.0,96700.0,0.151672]
[1733865384562,0.051671,96702.0,96700.0,0.1]
[1733865384969,0.0669,96701.0,96700.0,0.1]
[1733865385661,0.051674,96697.0,96692.0,0.051676]
[1733865385863,0.001,96702.0,96693.0,0.051676]
[1733865385864,0.051675,96695.0,96693.0,0.051676]
[1733865386064,0.10404888,96702.0,96686.0,0.3608]
[1733865386369,0.10404888,96702.0,96687.0,0.051679]
[1733865386370,0.051677,96691.0,96687.0,0.051679]
[1733865386761,0.051677,96691.0,96686.0,0.3608]
[1733865386961,0.0001005,96690.0,96670.0,0.051688]
[1733865387268,0.051687,96672.0,96670.0,0.051688]
[1733865388662,0.051687,96672.0,96670.0,0.008]
[1733865389365,0.052687,96672.0,96670.0,0.016]
[1733865389771,0.051687,96672.0,96670.0,0.008]
[1733865390067,0.052687,96672.0,96670.0,0.016]
[1733865390373,0.053687,96672.0,96670.0,0.015]
[1733865390561,0.053687,96672.0,96670.0,0.066688]
[1733865390762,0.002,96672.0,96670.0,0.066688]
[1733865390964,0.0517785,96690.0,96686.0,0.05168]
[1733865391263,0.0517785,96690.0,96670.0,0.059688]
[1733865391264,0.05168,96686.0,96682.0,0.051682]
[1733865391662,0.05168,96686.0,96681.0,0.3608]
[1733865391663,0.05168,96686.0,96684.0,0.051681]
[1733865392267,0.05168,96686.0,96681.0,0.3608]
[1733865392464,0.0001005,96690.0,96681.0,0.3608]
[1733865392669,0.051681,96683.0,96682.0,0.007]
[1733865393271,0.051688,96671.0,96670.0,0.006]
[1733865394164,0.3608,96677.0,96651.0,0.01048384]
[1733865394366,0.051693,96662.0,96660.0,0.051693]
[1733865395068,0.051693,96662.0,96649.0,0.3608]
[1733865395069,0.051696,96657.0,96649.0,0.3608]
[1733865395570,0.051696,96657.0,96650.0,0.0120249]
[1733865395769,0.051696,96657.0,96656.0,0.051696]
[1733865396161,0.15407539,96662.0,96650.0,0.00166632]
[1733865396364,0.051698,96651.0,96650.0,0.05336532]
[1733865396562,0.05180595,96651.0,96650.0,0.00166632]
[1733865397169,0.05180595,96651.0,96650.0,0.00308578]
[1733865397376,0.051709,96631.0,96630.0,0.3608]
[1733865397868,0.00010795,96651.0,96646.0,0.051701]
[1733865398071,0.05180595,96651.0,96650.0,0.051699]
[1733865398276,0.00010795,96651.0,96650.0,0.051699]
[1733865398666,0.00010795,96651.0,96650.0,0.055699]
[1733865399163,0.00010795,96651.0,96650.0,0.051699]
[1733865399370,0.07270684,96654.0,96653.0,0.051697]
[1733865399566,0.00155252,96659.0,96658.0,0.051695]
[1733865400068,0.00155252,96659.0,96653.0,0.25735083]
[1733865400573,0.00011022,96658.0,96653.0,0.25735083]
[1733865400774,0.00011022,96658.0,96657.0,0.051695]
[1733865402773,0.00011022,96658.0,96657.0,0.052695]
[1733865403181,0.00011022,96658.0,96657.0,0.051695]
[1733865403182,0.05180522,96658.0,96657.0,0.051695]
[1733865403364,0.05180522,96658.0,96657.0,0.054695]
[1733865403762,0.05180522,96658.0,96657.0,0.003]
[1733865403975,0.05180522,96658.0,96657.0,0.004]
[1733865404475,0.051699,96651.0,96650.0,0.051698]
[1733865404667,0.20513365,96651.0,96650.0,0.051698]
[1733865404866,0.051699,96651.0,96650.0,0.051698]
[1733865405274,0.051696,96656.0,96655.0,0.051696]
[1733865405480,0.10497368,96656.0,96655.0,0.051696]
[1733865405672,0.10497368,96656.0,96644.0,0.29361205]
[1733865405867,0.051697,96654.0,96644.0,0.29361205]
[1733865406071,0.15468669,96658.0,96657.0,0.051695]
[1733865406269,0.05322167,96658.0,96657.0,0.051695]
[1733865407076,0.00011022,96658.0,96657.0,0.051695]
[1733865407470,0.0523265,96658.0,96657.0,0.051695]
[1733865407882,0.0523265,96658.0,96657.0,0.412495]
[1733865408175,0.57649423,96678.0,96657.0,0.3618]
[1733865408176,0.18412004,96665.0,96657.0,0.3618]
[1733865408378,0.15396444,96664.0,96657.0,0.413495]
[1733865408678,0.3608,96678.0,96671.0,0.051688]
[1733865408679,0.15396444,96672.0,96671.0,0.051688]
[1733865408878,0.15394664,96673.0,96669.0,0.3608]
[1733865409070,0.15403263,96672.0,96669.0,0.3608]
[1733865409272,0.15394664,96670.0,96669.0,0.412489]
[1733865409483,8.599e-05,96672.0,96669.0,0.3608]
[1733865409772,8.599e-05,96672.0,96671.0,0.051688]
[1733865410565,0.15417366,96673.0,96672.0,0.051687]
[1733865410767,0.15417366,96674.0,96671.0,0.01051826]
[1733865410970,0.3608,96695.0,96676.0,0.051685]
[1733865410971,0.15417366,96677.0,96676.0,0.051685]
[1733865411175,0.15417366,96677.0,96669.0,0.72252]
[1733865411176,0.05233638,96677.0,96669.0,0.72252]
[1733865411473,0.15425724,96677.0,96669.0,0.73197089]
[1733865411676,0.15425724,96677.0,96676.0,0.051685]
[1733865411871,0.18412004,96685.0,96669.0,0.73289089]
[1733865412075,0.3608,96695.0,96681.0,0.051682]
[1733865412076,0.051682,96682.0,96681.0,0.051682]
[1733865412275,0.10400696,96682.0,96681.0,0.051682]
[1733865413381,0.28911731,96682.0,96680.0,0.19534258]
[1733865413577,0.28911731,96682.0,96680.0,0.24702558]
[1733865413578,0.05232496,96681.0,96680.0,0.24702558]
[1733865414774,0.10400696,96681.0,96680.0,0.24702558]
[1733865414976,0.10600696,96681.0,96680.0,0.24702558]
[1733865415182,0.051688,96674.0,96673.0,0.051686]
[1733865415480,0.051688,96674.0,96669.0,0.3618]
[1733865415481,0.051687,96673.0,96672.0,0.051687]
[1733865415884,0.051687,96673.0,96667.0,0.05169]
[1733865415885,0.051691,96668.0,96667.0,0.05169]
[1733865416071,0.10254025,96668.0,96667.0,0.05169]
[1733865416974,0.05084925,96668.0,96667.0,0.05169]
[1733865417178,0.05184925,96668.0,96667.0,0.05169]
[1733865417972,0.05284925,96668.0,96667.0,0.05169]
[1733865418175,0.006,96668.0,96667.0,0.05169]
[1733865418377,0.05626524,96668.0,96667.0,0.05169]
[1733865418978,0.006,96668.0,96667.0,0.05169]
[1733865419179,0.006,96668.0,96652.0,0.05324882]
[1733865419180,0.051694,96664.0,96652.0,0.00155182]
[1733865419387,0.051694,96660.0,96659.0,0.051694]
[1733865419881,0.10196334,96660.0,96659.0,0.051694]
[1733865420071,0.10196334,96660.0,96657.0,0.051695]
[1733865420072,0.051696,96658.0,96657.0,0.051695]
[1733865420272,0.10196534,96658.0,96657.0,0.051695]
[1733865420890,0.10454433,96660.0,96659.0,0.051694]
[1733865421085,0.004,96668.0,96667.0,0.05169]
[1733865421273,0.0654,96680.0,96665.0,0.3608]
[1733865421479,0.0654,96680.0,96660.0,0.0667]
[1733865421480,0.051687,96675.0,96674.0,0.051685]
[1733865421686,0.05026301,96675.0,96657.0,0.3608]
[1733865421887,0.002,96658.0,96657.0,0.051695]
[1733865422185,0.002,96658.0,96657.0,0.12225027]
[1733865422580,0.003,96658.0,96657.0,0.12225027]
[1733865422786,0.001,96658.0,96657.0,0.12225027]
[1733865423286,0.3608,96676.0,96657.0,0.12225027]
[1733865423480,0.051686,96674.0,96673.0,0.051686]
[1733865423787,0.05169,96666.0,96658.0,0.051694]
[1733865423989,0.051692,96664.0,96663.0,0.051691]
[1733865424183,0.051695,96658.0,96657.0,0.003]
[1733865424487,0.051695,96658.0,96657.0,0.054695]
[1733865424682,0.10196778,96658.0,96657.0,0.056695]
[1733865425081,0.051695,96658.0,96657.0,0.054695]
[1733865425788,0.051695,96658.0,96657.0,0.051695]
[1733865426185,0.055695,96658.0,96657.0,0.051695]
[1733865426590,0.056695,96658.0,96657.0,0.051695]
[1733865426788,0.056695,96658.0,96652.0,0.00155182]
[1733865426994,0.051697,96653.0,96652.0,0.00155182]
[1733865427300,0.10197302,96653.0,96652.0,0.00155182]
[1733865427893,0.10197302,96653.0,96652.0,0.05324982]
[1733865428095,0.61034198,96657.0,96656.0,0.051696]
[1733865428096,0.42496001,96657.0,96656.0,0.051696]
[1733865428284,0.4244,96657.0,96656.0,0.051696]
[1733865429492,0.4274,96657.0,96656.0,0.051696]
[1733865430093,0.3648,96657.0,96656.0,0.051696]
[1733865430293,0.004,96657.0,96656.0,0.06200034]
[1733865430596,0.0676,96669.0,96668.0,0.051689]
[1733865430597,0.119289,96669.0,96668.0,0.051689]
[1733865430793,0.119289,96669.0,96656.0,0.07042799]
[1733865430794,0.0676,96669.0,96656.0,0.01030434]
[1733865431090,0.0676,96669.0,96668.0,0.051689]
[1733865431484,0.18538197,96688.0,96681.0,0.051681]
[1733865431684,0.0676,96686.0,96685.0,0.05168]
[1733865431890,0.051682,96682.0,96674.0,0.37144523]
[1733865432085,0.051682,96682.0,96681.0,0.051682]
[1733865433093,0.051685,96677.0,96674.0,0.051686]
[1733865433389,0.41248,96685.0,96684.0,0.051681]
[1733865433796,0.3608,96685.0,96684.0,0.051681]
[1733865434292,0.0676,96686.0,96685.0,0.05168]
[1733865434496,0.11928,96686.0,96685.0,0.05168]
[1733865434992,0.05168,96685.0,96684.0,0.001]
[1733865435195,0.051686,96675.0,96674.0,0.051686]
[1733865435386,0.051686,96675.0,96667.0,0.01053195]
[1733865435387,0.051688,96670.0,96668.0,0.051689]
[1733865435583,0.051686,96674.0,96662.0,0.37117169]
[1733865435788,0.09273999,96668.0,96667.0,0.05169]
[1733865436397,0.09273999,96668.0,96662.0,0.37117169]
[1733865436398,0.09273999,96669.0,96668.0,0.051689]
[1733865437295,0.09273999,96670.0,96669.0,0.051689]
[1733865437700,0.14442799,96670.0,96669.0,0.051689]
[1733865437998,0.09273999,96670.0,96669.0,0.051689]
[1733865438589,0.003,96670.0,96662.0,0.37209169]
[1733865438793,0.09576034,96670.0,96662.0,0.37117169]
[1733865439001,0.09676034,96670.0,96662.0,0.37117169]
[1733865439392,0.14444934,96669.0,96667.0,0.05169]
[1733865439696,0.004,96670.0,96667.0,0.05169]
[1733865439697,0.051689,96668.0,96667.0,0.05169]
[1733865440491,0.09276034,96672.0,96662.0,0.36272]
[1733865440686,0.0652,96673.0,96663.0,0.051692]
[1733865440687,0.051692,96664.0,96663.0,0.051692]
[1733865440895,0.0676,96669.0,96662.0,0.001]
[1733865440896,0.051692,96663.0,96662.0,0.001]
[1733865441094,0.120692,96663.0,96662.0,0.00192]
[1733865441296,0.120692,96663.0,96655.0,0.051696]
[1733865441297,0.051696,96656.0,96655.0,0.051696]
[1733865441504,0.051697,96653.0,96652.0,0.00155182]
[1733865443198,0.051697,96653.0,96630.0,0.18417474]
[1733865443199,0.051703,96643.0,96630.0,0.18417474]
[1733865443495,0.051703,96643.0,96622.0,8.214e-05]
[1733865443496,0.051711,96628.0,96627.0,0.18417474]
[1733865443693,0.051713,96623.0,96622.0,8.214e-05]
[1733865443894,0.412513,96623.0,96622.0,8.214e-05]
[1733865444688,0.412513,96623.0,96622.0,0.05179614]
[1733865444891,0.412513,96623.0,96622.0,0.05479614]
[1733865445096,0.412513,96623.0,96622.0,0.00308214]
[1733865445297,0.412513,96623.0,96622.0,0.00508214]
[1733865449895,0.051725,96601.0,96595.0,0.3608]
[1733865450097,0.051725,96601.0,96593.0,0.051729]
[1733865450407,0.3608,96601.0,96584.0,0.00092]
[1733865450602,0.3608,96587.0,96584.0,0.00092]
[1733865450900,0.412533,96587.0,96584.0,0.00092]
[1733865451091,0.051729,96595.0,96586.0,0.00297321]
[1733865451599,0.051729,96595.0,96586.0,0.00997321]
[1733865451792,0.001,96587.0,96586.0,0.06970621]
[1733865451993,0.001,96587.0,96586.0,0.43050621]
[1733865452292,0.051726,96600.0,96594.0,0.051728]
[1733865452698,0.051726,96600.0,96595.0,0.051728]
[1733865453107,0.051726,96600.0,96597.0,0.00142017]
[1733865453601,0.052726,96600.0,96597.0,0.00142017]
[1733865453995,0.001,96600.0,96598.0,0.00142017]
[1733865454401,0.001,96600.0,96598.0,0.05314717]
[1733865455092,0.001,96600.0,96599.0,0.00142017]
[1733865455892,0.051725,96603.0,96599.0,0.00142017]
[1733865456093,0.05130483,96601.0,96598.0,0.060727]
[1733865456296,0.051726,96600.0,96598.0,0.009]
[1733865456604,0.051733,96587.0,96586.0,0.00155304]
[1733865456796,0.412533,96587.0,96586.0,0.00155304]
[1733865457204,0.051733,96587.0,96586.0,0.00155304]
[1733865459106,0.052733,96587.0,96586.0,0.00655304]
[1733865459298,0.052733,96587.0,96586.0,0.005]
[1733865459299,0.41361514,96587.0,96586.0,0.005]
[1733865459504,0.36088214,96587.0,96586.0,0.005]
[1733865459804,0.36088214,96587.0,96566.0,0.051744]
[1733865459805,0.051743,96568.0,96566.0,0.051744]
[1733865460007,0.35937954,96567.0,96566.0,0.051744]
[1733865461204,0.15419338,96580.0,96566.0,0.37120357]
[1733865461205,0.051736,96580.0,96566.0,0.37120357]
[1733865461404,0.051736,96580.0,96575.0,0.3608]
[1733865461598,0.051736,96580.0,96576.0,0.0656]
[1733865461800,0.36348215,96587.0,96576.0,0.0656]
[1733865461801,0.00268215,96587.0,96586.0,0.051733]
[1733865462004,0.00108214,96587.0,96586.0,0.051733]
[1733865462202,8.214e-05,96587.0,96586.0,0.051733]
[1733865462407,0.00155349,96590.0,96589.0,0.051732]
[1733865463112,0.15419338,96600.0,96589.0,0.051731]
[1733865463304,0.3608,96608.0,96593.0,0.051729]
[1733865463505,0.051728,96596.0,96593.0,0.051729]
[1733865463706,0.051724,96603.0,96589.0,0.3608]
[1733865463900,0.3608,96608.0,96606.0,0.051722]
[1733865465401,0.3608,96608.0,96599.0,0.1345]
[1733865465402,0.3608,96608.0,96599.0,0.0646]
[1733865465602,0.3608,96600.0,96589.0,0.36272]
[1733865465807,0.051727,96597.0,96595.0,0.051728]
[1733865466006,0.3608,96600.0,96589.0,0.052731]
[1733865466409,0.3608,96600.0,96585.0,0.01057778]
[1733865466608,0.05173,96593.0,96591.0,0.05173]
[1733865467004,0.36332001,96608.0,96584.0,0.49622]
[1733865467005,0.36332001,96608.0,96607.0,0.051722]
[1733865467210,0.3628,96608.0,96607.0,0.051722]
[1733865467510,0.3628,96608.0,96585.0,0.051734]
[1733865467704,0.051724,96604.0,96602.0,0.051724]
[1733865468613,0.051724,96604.0,96603.0,0.051724]
[1733865468911,0.052724,96604.0,96603.0,0.051724]
[1733865469105,0.055724,96604.0,96603.0,0.051724]
[1733865470718,0.054724,96604.0,96603.0,0.051724]
[1733865471010,0.055724,96604.0,96603.0,0.051724]
[1733865471508,0.054724,96604.0,96603.0,0.051724]
[1733865471809,0.14540456,96604.0,96603.0,0.051724]
[1733865472009,0.14840456,96604.0,96603.0,0.051724]
[1733865472204,0.004,96604.0,96594.0,0.01071908]
[1733865472406,0.004,96604.0,96597.0,0.051727]
[1733865472407,0.051727,96598.0,96597.0,0.051727]
[1733865472816,0.051727,96598.0,96590.0,0.051731]
[1733865472817,0.051731,96591.0,96590.0,0.051731]
[1733865474013,0.051734,96584.0,96583.0,0.00155307]
[1733865474707,0.190134,96584.0,96583.0,0.00155307]
[1733865475108,0.190134,96584.0,96576.0,0.01051538]
[1733865475109,0.051738,96577.0,96576.0,0.01051538]
[1733865475309,0.051742,96570.0,96568.0,0.051743]
[1733865475516,0.3608,96569.0,96568.0,0.051743]
[1733865476515,0.3618,96569.0,96568.0,0.051743]
[1733865476913,0.001,96569.0,96568.0,0.051743]
[1733865477510,0.001,96569.0,96564.0,0.01034433]
[1733865477511,0.48456491,96577.0,96575.0,0.051739]
[1733865477704,0.48454404,96577.0,96575.0,0.051739]
[1733865478011,0.12374404,96577.0,96576.0,0.051738]
[1733865478206,0.48454404,96577.0,96576.0,0.051738]
[1733865478407,0.3608,96577.0,96576.0,0.051738]
[1733865479017,0.01042408,96588.0,96581.0,0.051735]
[1733865479018,0.12374404,96586.0,96581.0,0.051735]
[1733865479211,0.3608,96589.0,96581.0,0.051735]
[1733865479212,0.12374404,96584.0,96581.0,0.051735]
[1733865479417,0.12374404,96582.0,96581.0,0.051735]
[1733865479609,0.12374404,96583.0,96581.0,0.051735]
[1733865479810,0.1540753,96588.0,96581.0,0.051735]
[1733865480010,0.3608,96589.0,96575.0,0.003]
[1733865480011,0.17550339,96583.0,96582.0,0.051734]
[1733865480415,0.051735,96583.0,96582.0,0.051734]
[1733865480616,0.12376839,96585.0,96576.0,0.002]
[1733865480817,0.12376839,96587.0,96576.0,0.002]
[1733865481118,0.12375846,96585.0,96576.0,0.002]
[1733865481319,0.3608,96589.0,96583.0,0.051735]
[1733865481320,0.12375846,96584.0,96583.0,0.051735]
[1733865481514,0.12375846,96585.0,96583.0,0.051735]
[1733865481908,0.12375846,96585.0,96583.0,0.06229974]
[1733865482115,0.00155364,96590.0,96584.0,0.0692]
[1733865482116,0.12375287,96589.0,96584.0,0.0692]
[1733865482314,0.00155364,96590.0,96584.0,0.0692]
[1733865482315,0.3608,96585.0,96584.0,0.120934]
[1733865482510,0.48455287,96585.0,96584.0,0.120934]
[1733865482710,0.48455287,96585.0,96576.0,0.0706]
[1733865482711,0.48455287,96585.0,96576.0,0.002]
[1733865482907,0.12375287,96580.0,96576.0,0.002]
[1733865483717,0.12375287,96580.0,96579.0,0.051737]
[1733865483916,0.12375287,96584.0,96583.0,0.051735]
[1733865484113,0.12375287,96584.0,96579.0,0.42107327]
[1733865484114,0.12375287,96587.0,96586.0,0.051733]
[1733865484421,0.12375287,96591.0,96590.0,0.051731]
[1733865484611,0.12375287,96593.0,96592.0,0.05173]
[1733865485021,0.1540753,96601.0,96598.0,0.051726]
[1733865485222,0.3608,96602.0,96598.0,0.051726]
[1733865485223,0.051726,96599.0,96598.0,0.051726]
[1733865485419,0.051729,96595.0,96591.0,0.05173]
[1733865485718,0.206425,96595.0,96593.0,0.051729]
[1733865485924,0.051731,96591.0,96587.0,0.051732]
[1733865486119,0.051731,96591.0,96580.0,0.0677]
[1733865486120,0.206427,96591.0,96590.0,0.051731]
[1733865486312,0.051731,96591.0,96590.0,0.051731]
[1733865486518,0.20644029,96591.0,96590.0,0.051731]
[1733865486720,0.051731,96591.0,96590.0,0.051731]
[1733865487022,0.51550929,96591.0,96590.0,0.051731]
[1733865487225,0.3608,96591.0,96590.0,0.051731]
[1733865487620,0.3618,96591.0,96590.0,0.051731]
[1733865488023,0.51650929,96591.0,96590.0,0.051731]
[1733865488325,0.41196789,96591.0,96578.0,0.00155307]
[1733865488526,0.41196789,96591.0,96579.0,0.06036662]
[1733865488527,0.051736,96581.0,96579.0,0.06036662]
[1733865488726,0.051736,96581.0,96578.0,0.00155307]
[1733865488920,0.15471218,96580.0,96578.0,0.00155307]
[1733865489226,0.20644818,96581.0,96579.0,0.051737]
[1733865489417,0.051736,96581.0,96579.0,0.051737]
[1733865489614,0.18538197,96589.0,96581.0,0.051736]
[1733865489615,0.051733,96588.0,96581.0,0.051736]
[1733865489922,0.051734,96585.0,96582.0,0.051735]
[1733865490119,0.10287703,96584.0,96582.0,0.051735]
[1733865490324,0.051737,96579.0,96578.0,0.00155307]
[1733865490826,0.20647213,96579.0,96578.0,0.00155307]
[1733865491531,0.051737,96579.0,96578.0,0.00155307]
[1733865491728,0.15473513,96581.0,96579.0,0.051737]
[1733865492027,0.051736,96581.0,96579.0,0.051737]
[1733865493419,0.051736,96581.0,96579.0,0.053737]
[1733865493623,0.051736,96581.0,96579.0,0.002]
[1733865493926,0.051736,96580.0,96579.0,0.002]
[1733865494131,0.20647113,96580.0,96579.0,0.002]
[1733865494320,0.051736,96580.0,96579.0,0.002]
[1733865494823,0.15473843,96581.0,96578.0,0.00155307]
[1733865495032,0.051737,96579.0,96578.0,0.00155307]
[1733865495219,0.10303358,96579.0,96578.0,0.00155307]
[1733865495420,0.051746,96563.0,96562.0,8.649e-05]
[1733865495622,0.412546,96563.0,96562.0,0.06045346]
[1733865495828,0.412546,96563.0,96562.0,8.649e-05]
[1733865496130,0.46370395,96563.0,96562.0,8.649e-05]
[1733865496331,0.47409101,96563.0,96562.0,8.649e-05]
[1733865496627,0.47409101,96563.0,96550.0,0.051752]
[1733865496628,0.051753,96551.0,96550.0,0.051752]
[1733865496828,0.412553,96551.0,96550.0,0.051752]
[1733865497133,0.412553,96551.0,96548.0,0.00155347]
[1733865497134,0.051753,96549.0,96548.0,0.00155347]
[1733865497619,0.05183949,96549.0,96548.0,0.00155347]
[1733865498130,0.17554653,96549.0,96548.0,0.00297435]
[1733865498629,0.41363949,96549.0,96548.0,0.00297435]
[1733865499326,0.56834347,96549.0,96548.0,0.00142088]
[1733865499529,0.41363949,96549.0,96548.0,0.00142088]
[1733865499734,0.42429705,96549.0,96548.0,0.00142088]
[1733865500035,0.41363949,96549.0,96548.0,0.00342088]
[1733865500326,0.53726299,96549.0,96548.0,0.00342088]
[1733865500532,0.41363949,96549.0,96548.0,0.00342088]
[1733865505630,0.41363949,96549.0,96548.0,0.05517488]
[1733865507731,0.41363949,96549.0,96548.0,0.00342088]
[1733865512129,0.41363949,96549.0,96548.0,0.05517488]
[1733865512336,0.41363949,96549.0,96548.0,0.00342088]
[1733865515332,0.41363949,96549.0,96548.0,0.05517488]
[1733865516929,0.41363949,96549.0,96548.0,0.00342088]
[1733865518441,0.41363949,96549.0,96534.0,0.05176]
[1733865518442,0.05176,96535.0,96534.0,0.05176]
[1733865518635,0.3608,96538.0,96537.0,0.051759]
[1733865519230,0.412559,96538.0,96537.0,0.051759]
[1733865519843,0.413559,96538.0,96537.0,0.051759]
[1733865520147,0.3618,96538.0,96537.0,0.051759]
[1733865522145,0.05176,96535.0,96534.0,0.005]
[1733865522451,0.05176,96535.0,96534.0,0.051761]
[1733865523550,0.05176,96535.0,96528.0,0.01217648]
[1733865523551,0.051763,96531.0,96529.0,0.051764]
[1733865523743,0.051763,96531.0,96530.0,0.051763]
[1733865524342,0.051764,96529.0,96528.0,0.00155394]
[1733865525560,0.23786271,96529.0,96528.0,0.00155394]
[1733865525845,0.10210569,96529.0,96528.0,0.00155394]
[1733865526049,0.10210569,96529.0,96519.0,0.00011436]
[1733865526252,0.18611283,96525.0,96519.0,0.00011436]
[1733865526446,0.12406344,96521.0,96520.0,0.051768]
[1733865526641,0.12406344,96522.0,96519.0,0.00011436]
[1733865526845,0.12406344,96525.0,96524.0,0.051766]
[1733865527250,0.12406344,96527.0,96521.0,0.24639365]
[1733865527443,0.12406344,96527.0,96526.0,0.051765]
[1733865527844,0.07406344,96528.0,96526.0,0.051765]
[1733865528047,0.001,96529.0,96528.0,0.051764]
[1733865528451,0.001,96529.0,96528.0,0.23720681]
[1733865528647,0.3608,96535.0,96527.0,0.18544281]
[1733865528849,0.3608,96535.0,96534.0,0.051761]
[1733865529043,0.15508125,96540.0,96534.0,0.3608]
[1733865529254,0.15508125,96542.0,96534.0,0.3608]
[1733865529557,0.15508125,96550.0,96539.0,0.18544281]
[1733865529851,0.54747284,96558.0,96547.0,0.051754]
[1733865529852,0.51588125,96558.0,96547.0,0.051754]
[1733865530153,0.3608,96558.0,96548.0,0.24591706]
[1733865530346,0.15508125,96560.0,96548.0,0.24591706]
[1733865530347,0.15508125,96560.0,96548.0,0.42131727]
[1733865530547,0.3608,96567.0,96548.0,0.42131727]
[1733865530852,0.3608,96567.0,96548.0,0.06051727]
[1733865530853,0.00108649,96549.0,96548.0,0.06051727]
[1733865531251,0.3608,96556.0,96549.0,0.051753]
[1733865531452,0.3608,96556.0,96555.0,0.05175]
[1733865531754,0.3608,96556.0,96555.0,0.11226727]
[1733865532647,0.3608,96556.0,96555.0,0.05175]
[1733865532842,0.3608,96567.0,96566.0,0.051744]
[1733865534144,0.3608,96567.0,96566.0,0.053744]
[1733865535455,0.3608,96567.0,96566.0,0.051744]
[1733865535653,0.3628,96567.0,96566.0,0.051744]
[1733865535851,0.3668,96567.0,96566.0,0.051744]
[1733865536244,0.3648,96567.0,96566.0,0.051744]
[1733865536459,0.3668,96567.0,96566.0,0.051744]
[1733865537355,0.3628,96567.0,96566.0,0.051744]
[1733865537557,0.32666681,96585.0,96562.0,0.01027263]
[1733865537759,0.32666681,96585.0,96584.0,0.051734]
[1733865537960,0.32666681,96585.0,96574.0,0.051739]
[1733865538158,0.32666681,96585.0,96584.0,0.051734]
[1733865539158,0.68746681,96585.0,96569.0,0.051742]
[1733865539359,0.68746681,96585.0,96568.0,0.18529774]
[1733865539360,0.3608,96576.0,96575.0,0.051739]
[1733865540565,0.051741,96571.0,96569.0,0.001]
[1733865542062,0.051741,96571.0,96545.0,0.24706366]
[1733865542063,0.051741,96571.0,96543.0,0.18529774]
[1733865542358,0.051754,96548.0,96532.0,0.18529774]
[1733865542560,0.051754,96548.0,96531.0,0.02028565]
[1733865542561,0.2182,96547.0,96531.0,0.02028565]
[1733865543060,0.2182,96547.0,96527.0,0.25479774]
[1733865543254,0.2182,96547.0,96519.0,0.00011436]
[1733865543255,0.2182,96547.0,96534.0,0.051761]
[1733865543460,0.2182,96547.0,96546.0,0.00655364]
[1733865543649,0.051764,96529.0,96527.0,0.051765]
[1733865544751,0.3608,96531.0,96530.0,0.051763]
[1733865544956,0.3608,96531.0,96516.0,0.0707]
[1733865545254,0.3608,96521.0,96507.0,0.25475175]
[1733865545568,0.412568,96521.0,96519.0,0.05188336]
[1733865545954,0.3608,96521.0,96519.0,0.05188336]
[1733865546762,0.3608,96521.0,96519.0,0.05588336]
[1733865546964,0.3608,96531.0,96519.0,0.00411436]
[1733865547167,0.3608,96531.0,96530.0,0.051763]
[1733865549362,0.3608,96531.0,96519.0,0.00411436]
[1733865549759,0.3608,96531.0,96529.0,0.051764]
[1733865549960,0.3608,96531.0,96530.0,0.002]
[1733865552368,0.051768,96521.0,96520.0,0.051768]
[1733865552562,0.412568,96521.0,96520.0,0.051768]
[1733865553862,0.413568,96521.0,96520.0,0.057768]
[1733865554267,0.413568,96521.0,96520.0,0.006]
[1733865555373,0.3618,96521.0,96520.0,0.006]
[1733865556363,0.3618,96521.0,96520.0,0.057769]
[1733865557661,0.413568,96521.0,96520.0,0.057769]
[1733865558363,0.413568,96521.0,96520.0,0.006]
[1733865559170,0.3618,96521.0,96520.0,0.057769]
[1733865559564,0.3118,96521.0,96520.0,0.057769]
[1733865559967,0.001,96521.0,96520.0,0.057769]
[1733865560764,0.052768,96521.0,96520.0,0.006]
[1733865560964,0.413568,96521.0,96520.0,0.006]
[1733865563367,0.42378447,96521.0,96520.0,0.006]
[1733865566976,0.42378447,96521.0,96520.0,0.004]
[1733865567367,0.42278447,96521.0,96520.0,0.002]
[1733865567561,0.42278447,96521.0,96520.0,0.003]
[1733865570169,0.412568,96521.0,96520.0,0.054769]
[1733865570372,0.051768,96521.0,96520.0,0.054769]
[1733865571571,0.412568,96521.0,96520.0,0.054769]
[1733865571772,0.412568,96521.0,96520.0,0.003]
[1733865572878,0.412568,96521.0,96520.0,0.054769]
[1733865574274,0.15508125,96523.0,96520.0,0.054769]
[1733865574479,0.36132001,96529.0,96528.0,0.051764]
[1733865574480,0.3608,96529.0,96528.0,0.051764]
[1733865575573,0.15508125,96532.0,96521.0,0.1446]
[1733865575574,0.15508125,96533.0,96532.0,0.051762]
[1733865575773,0.3608,96540.0,96524.0,0.051766]
[1733865575774,0.15508125,96537.0,96524.0,0.051766]
[1733865576077,0.051757,96541.0,96540.0,0.051758]
[1733865576078,0.20683825,96541.0,96540.0,0.051758]
[1733865576370,0.18611283,96551.0,96534.0,0.3608]
[1733865576371,0.15505162,96547.0,96534.0,0.7216]
[1733865576570,0.051751,96552.0,96545.0,0.3608]
[1733865576778,0.15505162,96554.0,96546.0,0.06044451]
[1733865576978,0.15505162,96554.0,96545.0,0.3608]
[1733865576979,0.051752,96551.0,96549.0,0.051753]
[1733865577168,0.15505162,96554.0,96549.0,0.051753]
[1733865577480,0.051752,96550.0,96549.0,0.051753]
[1733865579076,0.01057876,96556.0,96546.0,0.051754]
[1733865579274,0.009,96554.0,96546.0,0.051754]
[1733865579478,0.051753,96549.0,96547.0,0.051754]
[1733865579877,0.051753,96549.0,96548.0,0.051754]
[1733865580477,0.060753,96549.0,96548.0,0.051754]
[1733865581177,0.053753,96549.0,96548.0,0.051754]
[1733865582274,0.002,96549.0,96548.0,0.051754]
[1733865582476,0.3608,96561.0,96548.0,0.051754]